bitfinex/quotes_BTCUSD_20250222
["timestamp","ask_amount","ask_price","bid_price","bid_amount"]
[1740257903230,0.0027012,96724.0,96723.0,1.02957685]
[1740257908350,0.0027012,96724.0,96723.0,1.06175419]
[1740257922979,0.0027012,96724.0,96723.0,0.98265419]
[1740257927264,0.0027012,96724.0,96723.0,1.07551193]
[1740257930875,0.0027012,96724.0,96723.0,0.98265419]
[1740257944203,0.0027012,96724.0,96723.0,0.97525419]
[1740257944373,0.0027012,96724.0,96723.0,0.83171334]
[1740257944737,0.0027012,96724.0,96723.0,0.85911334]
[1740257944886,0.0027012,96724.0,96723.0,0.68171334]
[1740257945088,0.0805012,96724.0,96723.0,0.51886012]
[1740257945497,0.0805012,96724.0,96723.0,0.48668278]
[1740257946082,0.0805012,96724.0,96723.0,0.47968278]
[1740257946300,0.0795012,96724.0,96723.0,0.47168278]
[1740257946504,0.0795012,96724.0,96723.0,0.47868278]
[1740257947796,0.0795012,96724.0,96723.0,0.48368278]
[1740257949047,0.0795012,96724.0,96723.0,0.15998278]
[1740257958310,0.0795012,96724.0,96723.0,0.13880072]
[1740257958512,0.0795012,96724.0,96723.0,0.12680072]
[1740257958715,0.0795012,96724.0,96723.0,0.13280072]
[1740257958922,0.0795012,96724.0,96723.0,0.13580072]
[1740257959114,0.0795012,96724.0,96723.0,0.12680072]
[1740257960462,0.0795012,96724.0,96723.0,0.12880072]
[1740257960874,0.0795012,96724.0,96723.0,0.12680072]
[1740257961078,0.0795012,96724.0,96723.0,0.12780072]
[1740257961660,0.0795012,96724.0,96723.0,0.13180072]
[1740257962094,0.0795012,96724.0,96723.0,0.12780072]
[1740257962283,0.0795012,96724.0,96723.0,0.13180072]
[1740257971916,0.0795012,96724.0,96723.0,0.02915503]
[1740257973311,0.0795012,96724.0,96723.0,0.005]
[1740257995396,0.2345812,96724.0,96723.0,0.005]
[1740257996303,0.2345812,96724.0,96723.0,0.001]
[1740257996523,0.155084,96722.0,96707.0,0.00089339]
[1740257996726,0.155084,96722.0,96709.0,0.10264569]
[1740257997022,0.155084,96722.0,96709.0,0.12682143]
[1740257997524,0.155084,96722.0,96709.0,0.1369683]
[1740257998814,0.158084,96722.0,96709.0,0.1369683]
[1740257999210,0.160084,96722.0,96709.0,0.1369683]
[1740257999554,0.163084,96722.0,96709.0,0.1369683]
[1740257999716,0.008,96722.0,96709.0,0.1369683]
[1740257999914,0.008,96722.0,96709.0,0.11279256]
[1740258000117,0.006,96722.0,96710.0,0.02417426]
[1740258000317,0.006,96722.0,96711.0,0.10264569]
[1740258000517,0.006,96722.0,96712.0,0.0012406]
[1740258000723,0.006,96722.0,96715.0,0.206791]
[1740258000919,0.008,96722.0,96713.0,0.10264569]
[1740258001123,0.008,96722.0,96713.0,0.1038863]
[1740258001326,0.008,96722.0,96717.0,0.15509]
[1740258001503,0.008,96722.0,96713.0,0.10264569]
[1740258002127,0.002,96722.0,96713.0,0.10264569]
[1740258002349,0.005,96722.0,96713.0,0.10264569]
[1740258002919,0.003,96722.0,96713.0,0.10264569]
[1740258003541,0.004,96722.0,96714.0,0.155096]
[1740258003745,0.004,96722.0,96714.0,0.10264569]
[1740258004770,0.004,96722.0,96714.0,0.10364569]
[1740258004971,0.001,96722.0,96714.0,0.10364569]
[1740258006229,0.001,96722.0,96714.0,0.25874169]
[1740258006432,0.001,96722.0,96721.0,0.155085]
[1740258006569,0.001,96722.0,96715.0,0.1038863]
[1740258006770,0.001,96722.0,96718.0,0.155088]
[1740258006975,0.001,96722.0,96719.0,0.25773269]
[1740258007580,0.001,96722.0,96721.0,0.001]
[1740258008090,0.0017012,96724.0,96721.0,0.001]
[1740258008545,0.001,96722.0,96721.0,0.001]
[1740258008858,0.0017012,96724.0,96721.0,0.001]
[1740258009062,0.001,96722.0,96721.0,0.001]
[1740258009412,0.001,96722.0,96720.0,0.155085]
[1740258009618,0.001,96722.0,96720.0,0.155086]
[1740258009827,0.0027012,96724.0,96720.0,0.155086]
[1740258010027,0.0017012,96722.0,96720.0,0.155086]
[1740258010233,0.0027012,96722.0,96720.0,0.155086]
[1740258010526,0.0027012,96722.0,96720.0,0.156086]
[1740258011945,0.0017012,96722.0,96720.0,0.001]
[1740258012103,0.0027012,96722.0,96720.0,0.001]
[1740258017651,0.0027012,96722.0,96721.0,0.02415799]
[1740258018823,0.0017012,96722.0,96721.0,0.02415799]
[1740258019002,0.0017012,96722.0,96721.0,0.001]
[1740258019209,0.0027012,96722.0,96721.0,0.02515799]
[1740258019383,0.0027012,96722.0,96721.0,0.001]
[1740258019574,0.0027012,96722.0,96721.0,0.02515799]
[1740258019776,0.0027012,96722.0,96721.0,0.001]
[1740258038021,0.1577842,96722.0,96721.0,0.001]
[1740258038229,0.2357842,96722.0,96721.0,0.001]
[1740258041497,0.2842842,96722.0,96721.0,0.001]
[1740258043937,0.2842842,96722.0,96721.0,0.001]
[1740258044762,0.2842842,96722.0,96708.0,0.0008504]
[1740258044763,0.155104,96709.0,96708.0,0.0008504]
[1740258044967,0.233104,96709.0,96708.0,0.0008504]
[1740258047481,0.235104,96709.0,96708.0,0.0008504]
[1740258050028,0.280904,96709.0,96708.0,0.0008504]
[1740258051252,0.610604,96709.0,96708.0,0.0008504]
[1740258053322,0.610604,96709.0,96708.0,0.02198195]
[1740258053792,0.609604,96709.0,96708.0,0.02198195]
[1740258053992,0.612604,96709.0,96708.0,0.02198195]
[1740258054397,0.71524969,96709.0,96708.0,0.02198195]
[1740258055392,0.71224969,96709.0,96708.0,0.02198195]
[1740258055605,0.71724969,96709.0,96708.0,0.02198195]
[1740258056032,0.71895089,96709.0,96708.0,0.02198195]
[1740258056430,0.71795089,96709.0,96708.0,0.02198195]
[1740258056855,0.72195089,96709.0,96708.0,0.02198195]
[1740258057897,0.87195089,96709.0,96708.0,0.02198195]
[1740258066379,0.7693052,96709.0,96708.0,0.02198195]
[1740258066593,0.6455052,96709.0,96708.0,0.02198195]
[1740258074963,0.6455052,96709.0,96708.0,0.0008504]
[1740258097819,0.6455052,96709.0,96708.0,0.02144465]
[1740258098894,0.4955052,96709.0,96708.0,0.02144465]
[1740258102313,0.4955052,96709.0,96708.0,0.0008504]
[1740258123189,0.3404012,96709.0,96708.0,0.0008504]
[1740258123793,0.4955052,96709.0,96708.0,0.0008504]
[1740258124158,0.3404012,96709.0,96708.0,0.0008504]
[1740258124366,0.4955052,96709.0,96708.0,0.0008504]
[1740258129898,0.3404012,96709.0,96708.0,0.0008504]
[1740258130714,0.3404012,96709.0,96708.0,0.02123753]
[1740258130917,0.4955052,96709.0,96708.0,0.02123753]
[1740258132176,0.3404012,96709.0,96708.0,0.02123753]
[1740258140293,0.3404012,96709.0,96708.0,0.0244737]
[1740258143167,0.4955052,96709.0,96708.0,0.0244737]
[1740258143372,0.4955052,96709.0,96708.0,0.00408657]
[1740258143568,0.4955052,96709.0,96708.0,0.0008504]
[1740258154514,0.4955052,96709.0,96708.0,0.02182064]
[1740258163505,0.4955052,96709.0,96708.0,0.0008504]
[1740258198702,0.5724052,96709.0,96708.0,0.0008504]
[1740258211814,0.82505089,96709.0,96708.0,0.0008504]
[1740258228400,0.74815089,96709.0,96708.0,0.0008504]
[1740258244250,0.15,96708.0,96690.0,0.06820996]
[1740258244420,0.43234569,96707.0,96690.0,0.06820996]
[1740258244751,0.155122,96698.0,96690.0,0.06820996]
[1740258247708,0.157122,96698.0,96690.0,0.06820996]
[1740258248697,0.002,96698.0,96690.0,0.06820996]
[1740258248908,0.155124,96697.0,96690.0,0.06820996]
[1740258250103,0.002,96698.0,96690.0,0.06820996]
[1740258250303,0.206814,96705.0,96690.0,0.06820996]
[1740258250508,0.001,96697.0,96691.0,0.02420238]
[1740258250727,0.001,96697.0,96690.0,0.06820996]
[1740258251077,0.001,96697.0,96691.0,0.02420238]
[1740258251375,0.155111,96705.0,96691.0,0.02420238]
[1740258251600,0.004,96705.0,96692.0,0.00323647]
[1740258251794,0.155112,96704.0,96692.0,0.02743737]
[1740258251993,0.155112,96704.0,96692.0,0.00323647]
[1740258252287,0.001,96697.0,96692.0,0.00323647]
[1740258252730,0.001,96697.0,96693.0,0.02419942]
[1740258253073,0.001,96697.0,96692.0,0.00323647]
[1740258253271,0.155115,96702.0,96692.0,0.00323647]
[1740258253680,0.155115,96702.0,96693.0,0.00323647]
[1740258253882,0.210814,96705.0,96693.0,0.00323647]
[1740258254081,0.001,96697.0,96693.0,0.00323647]
[1740258254395,0.001,96697.0,96694.0,0.02419794]
[1740258254985,0.155112,96704.0,96694.0,0.02419794]
[1740258255335,0.001,96697.0,96690.0,0.06906036]
[1740258255685,0.001,96697.0,96691.0,0.02420238]
[1740258256609,0.155117,96702.0,96691.0,0.02420238]
[1740258256799,0.155117,96702.0,96690.0,0.06906036]
[1740258256960,0.001,96697.0,96690.0,0.06906036]
[1740258257498,0.002,96697.0,96691.0,0.02420238]
[1740258257708,0.001,96697.0,96691.0,0.02420238]
[1740258258301,0.002,96697.0,96691.0,0.02420238]
[1740258259749,0.155117,96701.0,96691.0,0.02420238]
[1740258260104,0.001,96697.0,96690.0,0.06906036]
[1740258260451,0.001,96697.0,96691.0,0.02420238]
[1740258260806,0.155117,96701.0,96691.0,0.02420238]
[1740258260807,0.157117,96701.0,96691.0,0.02420238]
[1740258261015,0.157117,96701.0,96690.0,0.06906036]
[1740258261232,0.160117,96701.0,96692.0,0.0242009]
[1740258261407,0.160117,96701.0,96690.0,0.06906036]
[1740258261585,0.005,96701.0,96690.0,0.06906036]
[1740258261796,0.005,96701.0,96691.0,0.02420238]
[1740258262689,0.003,96701.0,96691.0,0.02420238]
[1740258263282,0.001,96697.0,96691.0,0.02420238]
[1740258264543,0.155114,96703.0,96691.0,0.02420238]
[1740258264676,0.155114,96703.0,96691.0,0.02520238]
[1740258265030,0.001,96697.0,96691.0,0.02520238]
[1740258266091,0.155114,96703.0,96691.0,0.02520238]
[1740258266278,0.155114,96703.0,96691.0,0.02420238]
[1740258266478,0.158114,96703.0,96691.0,0.02420238]
[1740258266694,0.160114,96703.0,96691.0,0.02420238]
[1740258266898,0.001,96697.0,96691.0,0.02420238]
[1740258267108,0.001,96697.0,96690.0,0.0008504]
[1740258267304,0.001,96697.0,96692.0,0.0242009]
[1740258267506,0.001,96697.0,96690.0,0.0008504]
[1740258268065,0.155116,96702.0,96691.0,0.02520238]
[1740258268340,0.001,96697.0,96691.0,0.02520238]
[1740258269479,0.155116,96702.0,96691.0,0.02420238]
[1740258269619,0.001,96697.0,96691.0,0.02420238]
[1740258270322,0.002,96697.0,96691.0,0.02420238]
[1740258270560,0.002,96697.0,96691.0,0.02520238]
[1740258278728,0.0037008,96697.0,96691.0,0.02520238]
[1740258288515,0.0037008,96697.0,96691.0,0.001]
[1740258300284,0.0037008,96697.0,96692.0,0.0242009]
[1740258300531,0.0037008,96697.0,96691.0,0.001]
[1740258301151,0.1588258,96697.0,96690.0,0.0008504]
[1740258301530,0.1588258,96697.0,96692.0,0.001]
[1740258302088,0.1568258,96697.0,96690.0,0.0008504]
[1740258302304,0.1578258,96697.0,96690.0,0.0008504]
[1740258302551,0.1578258,96697.0,96690.0,0.0018504]
[1740258303038,0.155125,96696.0,96690.0,0.0018504]
[1740258303517,0.0017008,96697.0,96690.0,0.0018504]
[1740258303717,0.237733,96691.0,96690.0,0.0008504]
[1740258303844,0.0826,96691.0,96690.0,0.0008504]
[1740258304265,0.237733,96691.0,96690.0,0.0008504]
[1740258306200,0.238733,96691.0,96690.0,0.0008504]
[1740258313603,0.388733,96691.0,96690.0,0.0008504]
[1740258314009,0.49137869,96691.0,96690.0,0.0008504]
[1740258314559,0.50591954,96691.0,96690.0,0.0008504]
[1740258314955,0.50791954,96691.0,96690.0,0.0008504]
[1740258315248,0.51191954,96691.0,96690.0,0.0008504]
[1740258315450,0.55751954,96691.0,96690.0,0.0008504]
[1740258317794,0.55451954,96691.0,96690.0,0.0008504]
[1740258317994,0.55551954,96691.0,96690.0,0.0018504]
[1740258318315,0.56151954,96691.0,96690.0,0.0018504]
[1740258318526,0.55051954,96691.0,96690.0,0.0008504]
[1740258318723,0.55051954,96691.0,96690.0,0.0018504]
[1740258318976,0.56251954,96691.0,96690.0,0.0018504]
[1740258325375,0.56422034,96691.0,96690.0,0.0018504]
[1740258333589,0.155173,96666.0,96660.0,0.1890407]
[1740258333743,0.155173,96666.0,96660.0,0.0809]
[1740258333941,0.155173,96666.0,96661.0,0.02424679]
[1740258334689,0.155175,96665.0,96661.0,0.02424679]
[1740258334850,0.155175,96665.0,96661.0,0.02428985]
[1740258336163,0.155171,96667.0,96661.0,0.02428985]
[1740258336744,0.155171,96667.0,96661.0,0.02728985]
[1740258337306,0.155171,96667.0,96661.0,0.02428985]
[1740258337506,0.155171,96667.0,96661.0,0.02614025]
[1740258337736,0.155173,96666.0,96661.0,0.02614025]
[1740258338142,0.001,96667.0,96661.0,0.02614025]
[1740258339429,0.156173,96667.0,96661.0,0.02614025]
[1740258339728,0.156173,96667.0,96661.0,0.02514025]
[1740258339940,0.155173,96666.0,96661.0,0.02614025]
[1740258340279,0.155173,96666.0,96661.0,0.02514025]
[1740258340624,0.156173,96667.0,96661.0,0.02614025]
[1740258341187,0.155173,96667.0,96661.0,0.02614025]
[1740258341651,0.001,96666.0,96661.0,0.02514025]
[1740258341930,0.155173,96667.0,96661.0,0.02514025]
[1740258343254,0.156173,96667.0,96661.0,0.02514025]
[1740258343466,0.156173,96667.0,96661.0,0.02614025]
[1740258344006,0.156173,96667.0,96661.0,0.02514025]
[1740258344203,0.001,96667.0,96661.0,0.02514025]
[1740258344373,0.001,96667.0,96661.0,0.02614025]
[1740258344579,0.156172,96667.0,96661.0,0.02614025]
[1740258346150,0.001,96667.0,96661.0,0.02614025]
[1740258346371,0.001,96667.0,96662.0,0.0452]
[1740258346761,0.001,96667.0,96663.0,0.02424383]
[1740258347563,0.155152,96680.0,96663.0,0.17942183]
[1740258347768,0.079,96689.0,96670.0,0.1081407]
[1740258347923,0.43234569,96688.0,96671.0,0.0752]
[1740258348294,0.3297,96688.0,96678.0,0.1081407]
[1740258348641,0.155139,96687.0,96679.0,0.02422014]
[1740258348838,0.53655,96688.0,96677.0,0.0464]
[1740258349060,0.3297,96688.0,96677.0,0.0464]
[1740258349289,0.206855,96686.0,96678.0,0.02422162]
[1740258349484,0.206857,96686.0,96678.0,0.02422162]
[1740258349712,0.00100005,96685.0,96671.0,0.0760504]
[1740258349914,0.155152,96679.0,96671.0,0.0008504]
[1740258350112,0.3327,96688.0,96672.0,0.0242305]
[1740258350317,0.155153,96679.0,96672.0,0.0242305]
[1740258350521,0.206866,96681.0,96671.0,0.0008504]
[1740258350927,0.206857,96685.0,96672.0,0.0242305]
[1740258351344,0.002,96686.0,96671.0,0.0008504]
[1740258351345,0.155163,96672.0,96671.0,0.0008504]
[1740258351536,0.078,96685.0,96671.0,0.0008504]
[1740258351825,0.155163,96672.0,96671.0,0.0008504]
[1740258352342,0.155161,96674.0,96671.0,0.0008504]
[1740258352550,0.20688,96675.0,96671.0,0.0008504]
[1740258352746,0.15516,96674.0,96671.0,0.0008504]
[1740258352949,0.20688,96675.0,96671.0,0.0008504]
[1740258352950,0.155163,96672.0,96671.0,0.0008504]
[1740258353108,0.155157,96676.0,96671.0,0.0038504]
[1740258353312,0.155162,96674.0,96671.0,0.0038504]
[1740258353512,0.536561,96683.0,96671.0,0.0008504]
[1740258353775,0.155162,96673.0,96671.0,0.0008504]
[1740258355115,0.206865,96682.0,96671.0,0.0008504]
[1740258355257,0.001,96673.0,96671.0,0.0008504]
[1740258355907,0.206867,96681.0,96671.0,0.0008504]
[1740258356104,0.3297,96683.0,96671.0,0.0008504]
[1740258356306,0.155151,96680.0,96671.0,0.0008504]
[1740258356480,0.155151,96680.0,96672.0,0.0242305]
[1740258356724,0.155151,96680.0,96671.0,0.0008504]
[1740258357104,0.004,96682.0,96671.0,0.0008504]
[1740258357105,0.159148,96682.0,96671.0,0.0008504]
[1740258357287,0.155149,96681.0,96671.0,0.0008504]
[1740258357490,0.155149,96681.0,96672.0,0.0242305]
[1740258357669,0.3297,96683.0,96672.0,0.0242305]
[1740258357880,0.3297,96683.0,96672.0,0.0714305]
[1740258358103,0.3327,96683.0,96672.0,0.0714305]
[1740258358299,0.001,96673.0,96672.0,0.0714305]
[1740258358678,0.3297,96683.0,96672.0,0.0714305]
[1740258358929,0.3317,96683.0,96672.0,0.0714305]
[1740258359138,0.003,96683.0,96672.0,0.0714305]
[1740258359441,0.001,96683.0,96672.0,0.0714305]
[1740258359822,0.155149,96681.0,96672.0,0.0714305]
[1740258360226,0.155147,96682.0,96672.0,0.0714305]
[1740258360426,0.001,96683.0,96672.0,0.0714305]
[1740258360861,0.156146,96683.0,96672.0,0.0714305]
[1740258361233,0.001,96683.0,96672.0,0.0714305]
[1740258361470,0.157147,96683.0,96672.0,0.0714305]
[1740258361872,0.002,96683.0,96672.0,0.0714305]
[1740258362058,0.155152,96679.0,96672.0,0.0714305]
[1740258362240,0.002,96683.0,96672.0,0.0714305]
[1740258362241,0.155151,96680.0,96672.0,0.0714305]
[1740258363277,0.002,96683.0,96672.0,0.0724305]
[1740258363488,0.15515,96681.0,96672.0,0.0724305]
[1740258364215,0.3297,96685.0,96672.0,0.0724305]
[1740258364374,0.002,96680.0,96672.0,0.0724305]
[1740258364595,0.3297,96685.0,96672.0,0.0724305]
[1740258364796,0.155149,96681.0,96672.0,0.0724305]
[1740258364994,0.155152,96680.0,96672.0,0.0714305]
[1740258365371,0.157152,96680.0,96672.0,0.0714305]
[1740258365870,0.155152,96680.0,96672.0,0.0714305]
[1740258366080,0.155152,96679.0,96672.0,0.0714305]
[1740258366433,0.206866,96681.0,96672.0,0.0714305]
[1740258366640,0.155151,96680.0,96672.0,0.0714305]
[1740258367365,0.206861,96683.0,96672.0,0.0714305]
[1740258367714,0.155151,96680.0,96672.0,0.0714305]
[1740258368320,0.157151,96680.0,96672.0,0.0714305]
[1740258369147,0.002,96680.0,96672.0,0.0714305]
[1740258373209,0.0037014,96680.0,96672.0,0.0714305]
[1740258373845,0.1588524,96680.0,96672.0,0.0714305]
[1740258374844,0.0037014,96680.0,96672.0,0.0714305]
[1740258383880,0.0037014,96680.0,96672.0,0.0242305]
[1740258392523,0.0037014,96680.0,96671.0,0.0008504]
[1740258392901,0.0037014,96680.0,96672.0,0.0242305]
[1740258393308,0.0037014,96680.0,96673.0,0.02422902]
[1740258393596,0.0017014,96680.0,96671.0,0.0008504]
[1740258393991,0.0037014,96680.0,96674.0,0.02422754]
[1740258394157,0.0017014,96680.0,96671.0,0.0008504]
[1740258394401,0.0017014,96680.0,96675.0,0.02422606]
[1740258394608,0.0017014,96680.0,96671.0,0.0008504]
[1740258394930,0.0017014,96680.0,96676.0,0.02422458]
[1740258395144,0.0037014,96680.0,96671.0,0.0008504]
[1740258395381,0.0017014,96680.0,96677.0,0.0242231]
[1740258395601,0.0037014,96680.0,96671.0,0.0008504]
[1740258395790,0.0037014,96680.0,96678.0,0.02422162]
[1740258396094,0.0037014,96680.0,96671.0,0.0008504]
[1740258396589,0.0037014,96680.0,96672.0,0.0242305]
[1740258396726,0.0017014,96680.0,96671.0,0.0008504]
[1740258396947,0.0017014,96680.0,96672.0,0.0242305]
[1740258397141,0.0037014,96680.0,96671.0,0.0008504]
[1740258397368,0.0017014,96680.0,96671.0,0.0008504]
[1740258397572,0.0017014,96680.0,96672.0,0.0242305]
[1740258397779,0.0017014,96680.0,96671.0,0.0008504]
[1740258397947,0.0017014,96680.0,96673.0,0.02422902]
[1740258398151,0.0037014,96680.0,96671.0,0.0008504]
[1740258398352,0.0037014,96680.0,96674.0,0.02422754]
[1740258398711,0.0037014,96680.0,96671.0,0.0008504]
[1740258399056,0.0037014,96680.0,96672.0,0.0242305]
[1740258399426,0.0037014,96680.0,96671.0,0.0008504]
[1740258399616,0.0037014,96680.0,96673.0,0.02422902]
[1740258399866,0.0037014,96680.0,96671.0,0.0008504]
[1740258400068,0.0017014,96680.0,96671.0,0.0008504]
[1740258400270,0.0037014,96680.0,96672.0,0.0242305]
[1740258400768,0.0017014,96680.0,96671.0,0.0008504]
[1740258400972,0.0037014,96680.0,96671.0,0.0008504]
[1740258401179,0.0017014,96680.0,96672.0,0.0242305]
[1740258401393,0.0017014,96680.0,96671.0,0.0008504]
[1740258401562,0.0037014,96680.0,96673.0,0.02422902]
[1740258401765,0.0017014,96680.0,96673.0,0.02422902]
[1740258401971,0.0037014,96680.0,96671.0,0.0008504]
[1740258402179,0.0037014,96680.0,96674.0,0.02422754]
[1740258402338,0.0037014,96680.0,96671.0,0.0008504]
[1740258402540,0.0037014,96680.0,96672.0,0.0242305]
[1740258402747,0.0037014,96680.0,96671.0,0.0008504]
[1740258403159,0.0037014,96680.0,96672.0,0.0242305]
[1740258404328,0.0017014,96680.0,96672.0,0.0242305]
[1740258404562,0.0037014,96680.0,96672.0,0.0242305]
[1740258430740,0.0037014,96680.0,96673.0,0.02422902]
[1740258431266,0.0037014,96680.0,96670.0,0.0985716]
[1740258431952,0.0017014,96680.0,96671.0,0.10388687]
[1740258432306,0.0017014,96680.0,96678.0,0.155153]
[1740258432928,0.0017014,96680.0,96676.0,0.206875]
[1740258433466,0.0017014,96680.0,96678.0,0.001]
[1740258433675,0.0037014,96680.0,96678.0,0.156154]
[1740258433875,0.0017014,96680.0,96678.0,0.001]
[1740258434102,0.0017014,96680.0,96676.0,0.206875]
[1740258434302,0.0027014,96680.0,96678.0,0.155153]
[1740258434506,0.0017014,96680.0,96678.0,0.155153]
[1740258434702,0.0027014,96680.0,96676.0,0.207875]
[1740258434911,0.0027014,96680.0,96677.0,0.155155]
[1740258435141,0.0017014,96680.0,96677.0,0.155155]
[1740258435562,0.0017014,96680.0,96676.0,0.001]
[1740258435778,0.0017014,96680.0,96675.0,0.155157]
[1740258436158,0.0017014,96680.0,96678.0,0.001]
[1740258436159,0.0027014,96680.0,96678.0,0.001]
[1740258436839,0.0027014,96680.0,96676.0,0.155157]
[1740258437194,0.0017014,96680.0,96676.0,0.155157]
[1740258437407,0.0027014,96680.0,96676.0,0.155157]
[1740258437815,0.0027014,96680.0,96675.0,0.00124113]
[1740258437816,0.0017014,96680.0,96675.0,0.00124113]
[1740258438144,0.0017014,96680.0,96673.0,0.206881]
[1740258438145,0.0027014,96680.0,96679.0,0.155152]
[1740258438346,0.0027014,96680.0,96679.0,0.25779769]
[1740258438960,0.0017014,96680.0,96679.0,0.25779769]
[1740258440192,0.0027014,96680.0,96679.0,0.26179769]
[1740258440887,0.0037014,96680.0,96679.0,0.26179769]
[1740258441286,0.0027014,96680.0,96679.0,0.26179769]
[1740258443370,0.0027014,96680.0,96679.0,0.2695712]
[1740258444774,0.00166704,96680.0,96679.0,0.2695712]
[1740258445393,0.00166704,96680.0,96679.0,0.29060761]
[1740258455796,0.00166704,96680.0,96679.0,0.004]
[1740258456902,0.00066704,96680.0,96670.0,0.1089911]
[1740258457172,0.00066704,96680.0,96679.0,0.004]
[1740258458265,0.00066704,96680.0,96672.0,0.155163]
[1740258458566,0.00066704,96680.0,96679.0,0.003]
[1740258459121,0.00066704,96680.0,96672.0,0.155163]
[1740258459320,0.00066704,96680.0,96672.0,0.158163]
[1740258459782,0.00066704,96680.0,96672.0,0.155163]
[1740258460087,0.00066704,96680.0,96679.0,0.003]
[1740258462045,0.00066704,96680.0,96672.0,0.155163]
[1740258462260,0.00066704,96680.0,96672.0,0.158163]
[1740258462657,0.00066704,96680.0,96672.0,0.155163]
[1740258463003,0.00066704,96680.0,96679.0,0.003]
[1740258463405,0.00066704,96680.0,96672.0,0.155163]
[1740258463612,0.00066704,96680.0,96672.0,0.158163]
[1740258464720,0.00066704,96680.0,96672.0,0.003]
[1740258464917,0.00066704,96680.0,96671.0,0.25780969]
[1740258465301,0.00066704,96680.0,96679.0,0.003]
[1740258466124,0.00066704,96680.0,96679.0,0.0008504]
[1740258468191,0.00066704,96680.0,96679.0,0.0038504]
[1740258469279,0.00066704,96680.0,96679.0,0.1590024]
[1740258472439,0.00066704,96680.0,96679.0,0.17926511]
[1740258480652,0.00066704,96680.0,96679.0,0.02411311]
[1740258481942,0.00066704,96680.0,96679.0,0.0038504]
[1740258489755,0.00066704,96680.0,96679.0,0.1590024]
[1740258490552,0.00066704,96680.0,96679.0,0.0038504]
[1740258491680,0.00066704,96680.0,96679.0,0.12937009]
[1740258492123,0.00066704,96680.0,96679.0,0.13260674]
[1740258492706,0.00066704,96680.0,96679.0,0.28775874]
[1740258494328,0.00066704,96680.0,96679.0,0.28452209]
[1740258498014,0.00066704,96680.0,96679.0,0.28775872]
[1740258499550,0.00066704,96680.0,96679.0,0.31686135]
[1740258500113,0.00066704,96680.0,96679.0,0.31386135]
[1740258500317,0.00066704,96680.0,96679.0,0.31686135]
[1740258501098,0.00066704,96680.0,96679.0,0.31386135]
[1740258501235,0.00166704,96680.0,96679.0,0.28652209]
[1740258504470,0.00166704,96680.0,96679.0,0.28975826]
[1740258506061,0.00156517,96680.0,96679.0,0.28975826]
[1740258509345,0.00156517,96680.0,96679.0,0.13460626]
[1740258509756,0.00156517,96680.0,96679.0,0.13137009]
[1740258509966,0.00156517,96680.0,96679.0,0.0287244]
[1740258526528,0.08196517,96680.0,96679.0,0.0287244]
[1740258526758,0.08196517,96680.0,96679.0,0.0058504]
[1740258530525,0.00156517,96680.0,96679.0,0.0058504]
[1740258530730,0.00156517,96680.0,96679.0,0.0287244]
[1740258564638,0.00156517,96680.0,96679.0,0.0287244]
[1740258592740,0.00156517,96680.0,96679.0,0.1838764]
[1740258594411,0.00156517,96680.0,96679.0,0.0287244]
[1740258609920,0.00156517,96680.0,96679.0,0.1838764]
[1740258613349,0.00156517,96680.0,96679.0,0.28652209]
[1740258626295,0.00156517,96680.0,96679.0,0.13137009]
[1740258626704,0.00156517,96680.0,96679.0,0.28652209]
[1740258628862,0.00156517,96680.0,96679.0,0.13137009]
[1740258629059,0.00156517,96680.0,96679.0,0.28652209]
[1740258629348,0.00156517,96680.0,96679.0,0.0287244]
[1740258629991,0.07796517,96680.0,96679.0,0.0287244]
[1740258630425,0.07796517,96680.0,96679.0,0.0058504]
[1740258645947,0.00156517,96680.0,96679.0,0.0058504]
[1740258647663,0.00156517,96680.0,96679.0,0.0287244]
[1740258648115,0.00156517,96680.0,96679.0,0.0058504]
[1740258648954,0.00156517,96680.0,96679.0,0.0287244]
[1740258649192,0.00156517,96680.0,96679.0,0.0058504]
[1740258649358,0.00156517,96680.0,96679.0,0.0287244]
[1740258649602,0.00156517,96680.0,96679.0,0.0058504]
[1740258649772,0.00156517,96680.0,96679.0,0.0287244]
[1740258650575,0.00156517,96680.0,96679.0,0.0058504]
[1740258652072,0.00156517,96680.0,96679.0,0.0287244]
[1740258666094,0.00156517,96680.0,96679.0,0.13137009]
[1740258669299,0.00156517,96680.0,96679.0,0.28652209]
[1740258669510,0.00156517,96680.0,96679.0,0.13137009]
[1740258671087,0.00156517,96680.0,96679.0,0.28652209]
[1740258701417,0.00156517,96680.0,96679.0,0.31882278]
[1740258701623,0.00156517,96680.0,96679.0,0.36772278]
[1740258702591,0.00056517,96680.0,96679.0,0.36272278]
[1740258702794,0.00256517,96680.0,96679.0,0.37072278]
[1740258703115,0.00256517,96680.0,96679.0,0.52072278]
[1740258705640,0.00256517,96680.0,96679.0,0.52808278]
[1740258707738,0.00256517,96680.0,96679.0,0.52072278]
[1740258707992,0.00256517,96680.0,96679.0,0.52808278]
[1740258708996,0.00256517,96680.0,96679.0,0.53222578]
[1740258710095,0.00256517,96680.0,96679.0,0.62519896]
[1740258713039,0.00256517,96680.0,96679.0,0.53222578]
[1740258716330,0.00256517,96680.0,96679.0,0.62519896]
[1740258719397,0.00256517,96680.0,96679.0,0.94889896]
[1740258720160,0.00156517,96680.0,96679.0,0.84892578]
[1740258720660,0.00156517,96680.0,96679.0,0.85592578]
[1740258721009,0.00156517,96680.0,96679.0,0.84892578]
[1740258721405,0.00156517,96680.0,96679.0,0.85592578]
[1740258721988,0.00056517,96680.0,96679.0,0.85492578]
[1740258722232,0.00156517,96680.0,96679.0,0.86092578]
[1740258730809,0.00156517,96680.0,96679.0,0.95395322]
[1740258734950,0.00156517,96680.0,96679.0,0.86092578]
[1740258736155,0.0017008,96691.0,96690.0,0.305134]
[1740258736363,0.0017008,96691.0,96690.0,0.4629381]
[1740258736714,0.0017008,96691.0,96690.0,0.4670801]
[1740258737258,0.0017008,96691.0,96690.0,0.83032095]
[1740258737475,8e-07,96691.0,96690.0,0.95992095]
[1740258737875,8e-07,96691.0,96690.0,0.97792095]
[1740258738096,8e-07,96691.0,96690.0,0.98492095]
[1740258738953,8e-07,96691.0,96690.0,0.99262082]
[1740258739156,8e-07,96691.0,96690.0,0.99047112]
[1740258739355,8e-07,96691.0,96690.0,0.99647112]
[1740258739556,8e-07,96691.0,96690.0,0.98947112]
[1740258739807,8e-07,96691.0,96690.0,0.99047112]
[1740258740040,8e-07,96691.0,96690.0,0.99747112]